bitfinex/quotes_SOLUSD_20241019
["timestamp","ask_amount","ask_price","bid_price","bid_amount"]
[1729329641114,6.5147703,154.8,154.68,23.776884]
[1729329641313,26.4596,154.81,154.68,23.776884]
[1729329641806,6.51581119,154.8,154.68,23.776884]
[1729329645610,26.4596,154.81,154.68,23.776884]
[1729329645925,6.52160678,154.8,154.68,23.776884]
[1729329646111,6.52160678,154.79,154.68,23.776884]
[1729329646421,6.52160678,154.78,154.68,23.776884]
[1729329646611,6.4603,154.8,154.68,23.776884]
[1729329646812,6.52193286,154.79,154.68,23.776884]
[1729329647021,6.52193286,154.78,154.68,23.776884]
[1729329647225,6.4603,154.8,154.68,23.776884]
[1729329647425,6.52245673,154.79,154.68,23.776884]
[1729329647619,6.52245673,154.78,154.68,23.776884]
[1729329647807,6.4603,154.8,154.68,23.776884]
[1729329648015,6.52379345,154.79,154.68,23.776884]
[1729329648225,6.52379345,154.78,154.68,23.776884]
[1729329648437,14.44723677,154.8,154.68,23.776884]
[1729329648608,6.52584772,154.79,154.68,23.776884]
[1729329648805,6.4603,154.8,154.68,23.776884]
[1729329649010,20.97821098,154.8,154.68,23.776884]
[1729329649220,6.52582896,154.79,154.68,23.776884]
[1729329651124,14.51791098,154.79,154.68,23.776884]
[1729329651831,6.52582896,154.78,154.68,23.776884]
[1729329652033,6.52582896,154.77,154.68,23.776884]
[1729329652205,7.99208202,154.79,154.68,23.776884]
[1729329652605,14.52931873,154.79,154.68,23.776884]
[1729329654322,14.52931873,154.78,154.68,23.776884]
[1729329654634,6.53723671,154.77,154.68,23.776884]
[1729329654834,6.53723671,154.76,154.68,23.776884]
[1729329655034,7.99208202,154.78,154.68,23.776884]
[1729329656106,6.4603,154.8,154.68,23.776884]
[1729329656312,8.01689389,154.78,154.68,23.776884]
[1729329656517,6.54897563,154.77,154.68,23.776884]
[1729329656725,6.54897563,154.76,154.68,23.776884]
[1729329656912,6.54897563,154.75,154.68,23.776884]
[1729329657118,6.4603,154.8,154.68,23.776884]
[1729329657119,8.02045822,154.77,154.68,23.776884]
[1729329658225,6.5527165,154.76,154.68,23.776884]
[1729329658616,6.5527165,154.75,154.68,23.776884]
[1729329658832,6.5527165,154.74,154.67,21.5024]
[1729329659035,8.02045822,154.77,154.67,21.5024]
[1729329659240,14.58154757,154.76,154.67,21.5024]
[1729329659424,6.56108935,154.75,154.67,21.5024]
[1729329660138,14.58154757,154.74,154.67,21.5024]
[1729329660337,6.56108935,154.73,154.68,23.776884]
[1729329660549,6.56108935,154.72,154.68,23.776884]
[1729329660751,8.02045822,154.74,154.68,23.776884]
[1729329660937,6.57111323,154.73,154.68,23.776884]
[1729329661243,14.59157145,154.72,154.68,23.776884]
[1729329661429,6.57111323,154.71,154.68,23.776884]
[1729329661625,8.02045822,154.72,154.68,23.776884]
[1729329661626,6.57111323,154.7,154.68,23.776884]
[1729329661832,6.57111323,154.69,154.68,23.776884]
[1729329662148,6.57205672,154.69,154.63,22.1651]
[1729329662346,8.04624495,154.71,154.64,23.776884]
[1729329662537,6.57109527,154.7,154.64,23.776884]
[1729329662722,6.57109527,154.69,154.64,23.776884]
[1729329662922,8.04624495,154.71,154.64,23.776884]
[1729329663122,6.57108611,154.7,154.64,23.776884]
[1729329663345,6.57108611,154.69,154.64,23.776884]
[1729329663517,8.04624495,154.71,154.64,23.776884]
[1729329663723,6.57041314,154.7,154.64,23.776884]
[1729329663943,6.57041314,154.69,154.64,23.776884]
[1729329664118,8.04624495,154.71,154.64,23.776884]
[1729329664324,6.57045961,154.7,154.64,23.776884]
[1729329664544,6.57045961,154.69,154.64,23.776884]
[1729329664749,8.04624495,154.71,154.64,23.776884]
[1729329664935,6.56941589,154.7,154.64,23.776884]
[1729329665134,6.56941589,154.69,154.64,23.776884]
[1729329665334,8.04624495,154.71,154.64,23.776884]
[1729329665532,6.56884881,154.7,154.64,23.776884]
[1729329665731,6.56884881,154.69,154.63,6.6293]
[1729329665949,14.6109096,154.68,154.59,22.1651]
[1729329666130,6.56884881,154.67,154.59,22.1651]
[1729329666335,6.56884881,154.66,154.59,22.1651]
[1729329666539,8.04206079,154.68,154.59,22.1651]
[1729329666838,14.60928221,154.67,154.59,22.1651]
[1729329667043,6.56722142,154.66,154.6,23.776884]
[1729329667432,6.56722142,154.65,154.6,23.776884]
[1729329667633,8.04206079,154.69,154.6,23.776884]
[1729329667845,14.60635774,154.68,154.6,23.776884]
[1729329668026,6.56429695,154.67,154.6,23.776884]
[1729329669249,22.9459,154.72,154.6,23.776884]
[1729329669250,20.0,154.71,154.6,23.776884]
[1729329669553,8.02927908,154.69,154.6,23.776884]
[1729329669737,6.56169093,154.68,154.6,23.776884]
[1729329669938,6.56169093,154.67,154.6,23.776884]
[1729329670251,6.56169093,154.66,154.6,23.776884]
[1729329670452,8.02927908,154.69,154.6,23.776884]
[1729329670752,6.5567035,154.68,154.6,23.776884]
[1729329670951,6.5567035,154.67,154.6,23.776884]
[1729329671170,6.5567035,154.66,154.6,23.776884]
[1729329671458,8.02927908,154.69,154.59,22.1651]
[1729329671630,6.55470717,154.68,154.59,22.1651]
[1729329671829,6.55470717,154.67,154.59,22.1651]
[1729329672148,8.02927908,154.69,154.58,0.0702806]
[1729329672149,22.7619,154.68,154.58,0.0702806]
[1729329672451,6.55313643,154.67,154.58,0.0702806]
[1729329672653,6.55313643,154.66,154.58,0.0702806]
[1729329672849,22.7619,154.68,154.58,0.0702806]
[1729329672850,20.0,154.67,154.58,0.0702806]
[1729329673051,6.55321236,154.66,154.58,0.0702806]
[1729329673241,20.0,154.67,154.58,0.0702806]
[1729329674235,16.4824,154.68,154.58,0.0702806]
[1729329674556,6.5498382,154.67,154.6,15.5358]
[1729329674749,8.0186863,154.7,154.61,23.776884]
[1729329674956,6.55004724,154.69,154.61,23.776884]
[1729329675154,6.55004724,154.68,154.61,23.776884]
[1729329675458,20.0,154.7,154.61,23.776884]
[1729329675632,6.54835281,154.69,154.61,23.776884]
[1729329675956,20.0,154.7,154.61,23.776884]
[1729329676149,6.54836892,154.69,154.61,23.776884]
[1729329676348,20.0,154.7,154.61,23.776884]
[1729329676647,6.54769915,154.69,154.61,23.776884]
[1729329676949,20.0,154.7,154.61,23.776884]
[1729329676950,6.54769915,154.68,154.61,23.776884]
[1729329677260,20.0,154.7,154.61,23.776884]
[1729329677575,6.54670791,154.69,154.61,23.776884]
[1729329677737,6.54670791,154.68,154.61,23.776884]
[1729329677937,20.0,154.7,154.61,23.776884]
[1729329678140,6.54672204,154.69,154.61,23.776884]
[1729329678339,8.01411368,154.71,154.61,23.776884]
[1729329678550,6.54577491,154.7,154.61,23.776884]
[1729329678751,6.54577491,154.69,154.61,23.776884]
[1729329678952,8.01411368,154.71,154.61,23.776884]
[1729329679156,6.54577986,154.7,154.61,23.776884]
[1729329679460,6.54577986,154.69,154.61,23.776884]
[1729329679659,8.01411368,154.71,154.61,23.776884]
[1729329679951,6.54487959,154.7,154.61,23.776884]
[1729329680255,6.54487959,154.69,154.61,23.776884]
[1729329680452,20.0,154.71,154.61,23.776884]
[1729329680656,6.545302,154.7,154.61,23.776884]
[1729329680862,6.545302,154.69,154.61,23.776884]
[1729329681038,20.0,154.71,154.61,23.776884]
[1729329681239,6.5464035,154.7,154.61,23.776884]
[1729329681434,20.0,154.71,154.61,23.776884]
[1729329681634,6.54728836,154.7,154.61,23.776884]
[1729329681830,20.0,154.71,154.61,23.776884]
[1729329682057,6.54751998,154.7,154.61,23.776884]
[1729329682276,20.0,154.71,154.61,23.776884]
[1729329682589,6.54643693,154.7,154.61,23.776884]
[1729329682853,30.77601368,154.72,154.61,23.776884]
[1729329683050,6.54662885,154.71,154.61,23.776884]
[1729329683359,16.4824,154.72,154.61,23.776884]
[1729329683561,6.54610569,154.71,154.61,23.776884]
[1729329683757,16.4824,154.72,154.61,23.776884]
[1729329684061,6.54534731,154.71,154.61,23.776884]
[1729329684257,16.4824,154.72,154.61,23.776884]
[1729329684465,6.54556114,154.71,154.61,23.776884]
[1729329684761,16.4824,154.72,154.61,23.776884]
[1729329684947,6.54555375,154.71,154.61,23.776884]
[1729329685146,16.4824,154.72,154.61,23.776884]
[1729329685355,6.5454753,154.71,154.61,23.776884]
[1729329685562,16.4824,154.72,154.61,23.776884]
[1729329685773,6.54588138,154.71,154.61,23.776884]
[1729329685938,16.4824,154.72,154.61,23.776884]
[1729329686139,6.5459989,154.71,154.61,23.776884]
[1729329686338,16.4824,154.72,154.61,23.776884]
[1729329686546,6.54650509,154.71,154.61,23.776884]
[1729329686863,16.4824,154.72,154.61,23.776884]
[1729329687043,6.54649653,154.71,154.61,23.776884]
[1729329687247,16.4824,154.72,154.61,23.776884]
[1729329687557,6.54675727,154.71,154.61,23.776884]
[1729329687865,16.4824,154.72,154.61,23.776884]
[1729329688048,6.54684013,154.71,154.61,23.776884]
[1729329688242,6.65294778,154.73,154.63,23.776884]
[1729329688447,6.54755252,154.72,154.63,23.776884]
[1729329688644,6.54755252,154.71,154.63,23.776884]
[1729329688865,6.65294778,154.73,154.63,23.776884]
[1729329689162,6.54759558,154.72,154.63,23.776884]
[1729329689361,6.54759558,154.71,154.63,23.776884]
[1729329689565,6.65294778,154.73,154.63,23.776884]
[1729329689768,6.54829158,154.72,154.63,23.776884]
[1729329690076,6.54829158,154.71,154.63,23.776884]
[1729329690265,6.65294778,154.73,154.63,23.776884]
[1729329690568,6.54875318,154.72,154.63,23.776884]
[1729329690862,6.54875318,154.71,154.63,23.776884]
[1729329691066,6.65294778,154.73,154.63,23.776884]
[1729329691261,6.54925447,154.72,154.63,23.776884]
[1729329691566,6.54925447,154.71,154.63,23.776884]
[1729329691868,6.65294778,154.73,154.63,23.776884]
[1729329692060,6.54971986,154.72,154.63,23.776884]
[1729329692262,6.54971986,154.71,154.63,23.776884]
[1729329692461,6.65294778,154.73,154.63,23.776884]
[1729329692663,6.55057739,154.72,154.63,23.776884]
[1729329692857,6.55057739,154.71,154.63,23.776884]
[1729329693045,6.65294778,154.73,154.63,23.776884]
[1729329693377,21.2218299,154.73,154.63,23.776884]
[1729329693672,6.55100883,154.72,154.63,23.776884]
[1729329694268,6.55100883,154.71,154.63,23.776884]
[1729329694571,8.01787329,154.73,154.63,23.776884]
[1729329695372,20.0,154.75,154.63,23.776884]
[1729329695555,8.02249758,154.73,154.63,23.776884]
[1729329695756,6.55304469,154.72,154.63,23.776884]
[1729329695945,6.55304469,154.71,154.63,23.776884]
[1729329696146,8.02249758,154.73,154.63,23.776884]
[1729329696348,6.55459129,154.72,154.63,23.776884]
[1729329696666,6.55459129,154.71,154.63,23.776884]
[1729329696982,8.02249758,154.73,154.63,23.776884]
[1729329697143,6.55517562,154.72,154.63,23.776884]
[1729329697343,8.02249758,154.73,154.63,23.776884]
[1729329697344,6.55517562,154.71,154.63,23.776884]
[1729329697570,6.55517562,154.7,154.63,23.776884]
[1729329697750,8.02249758,154.73,154.63,23.776884]
[1729329697951,6.55543529,154.72,154.63,23.776884]
[1729329698152,6.55543529,154.71,154.63,23.776884]
[1729329698352,6.55543529,154.7,154.63,23.776884]
[1729329698556,8.02249758,154.73,154.63,23.776884]
[1729329698760,6.55656774,154.72,154.63,23.776884]
[1729329699061,6.55656774,154.71,154.63,23.776884]
[1729329699261,6.5575612,154.7,154.63,23.776884]
[1729329699573,8.02845989,154.73,154.63,23.776884]
[1729329699871,6.55791291,154.72,154.63,23.776884]
[1729329700059,6.55791291,154.71,154.63,23.776884]
[1729329700269,6.55791291,154.7,154.63,23.776884]
[1729329700454,8.02845989,154.72,154.63,23.776884]
[1729329701352,14.58777618,154.72,154.63,23.776884]
[1729329701555,6.55931629,154.71,154.63,23.776884]
[1729329701780,6.55931629,154.7,154.63,23.776884]
[1729329701964,8.02845989,154.72,154.63,23.776884]
[1729329702165,6.56096248,154.71,154.63,23.776884]
[1729329704165,6.56096248,154.7,154.63,23.776884]
[1729329704683,6.56096248,154.69,154.63,23.776884]
[1729329704980,8.02845989,154.72,154.63,23.776884]
[1729329705282,14.59725816,154.71,154.63,23.776884]
[1729329705456,6.56879827,154.7,154.63,23.776884]
[1729329706879,6.5688205,154.69,154.63,23.776884]
[1729329707078,8.04204959,154.71,154.63,23.776884]
[1729329707280,6.56884448,154.7,154.63,23.776884]
[1729329707464,6.56884448,154.69,154.63,23.776884]
[1729329707665,6.56884448,154.68,154.63,23.776884]
[1729329707865,8.04204959,154.71,154.63,23.776884]
[1729329708078,6.56953001,154.7,154.63,23.776884]
[1729329708279,6.56953001,154.69,154.63,23.776884]
[1729329708585,6.56953001,154.68,154.63,23.776884]
[1729329708770,8.04204959,154.71,154.63,23.776884]
[1729329708971,6.56976024,154.7,154.63,23.776884]
[1729329709168,6.56976024,154.69,154.63,23.776884]
[1729329709374,6.56976024,154.68,154.63,23.776884]
[1729329709681,8.04204959,154.71,154.63,23.776884]
[1729329709892,6.57000105,154.7,154.63,23.776884]
[1729329710082,6.57000105,154.69,154.63,23.776884]
[1729329710380,6.57000105,154.68,154.63,23.776884]
[1729329710581,8.04204959,154.71,154.63,23.776884]
[1729329710786,6.57020133,154.7,154.63,23.776884]
[1729329710999,6.57018125,154.69,154.63,23.776884]
[1729329711284,6.57018125,154.68,154.63,23.776884]
[1729329711585,8.04362161,154.71,154.63,23.776884]
[1729329711785,6.57042842,154.7,154.63,23.776884]
[1729329711978,6.57042842,154.69,154.63,23.776884]
[1729329712180,6.57042842,154.68,154.63,23.776884]
[1729329712482,8.04362161,154.71,154.63,23.776884]
[1729329712685,6.57051208,154.7,154.63,23.776884]
[1729329712864,6.57051208,154.69,154.63,23.776884]
[1729329713059,6.57051208,154.68,154.63,23.776884]
[1729329713403,8.04362161,154.71,154.63,23.776884]
[1729329713684,6.5706901,154.7,154.63,23.776884]
[1729329713886,6.5706901,154.69,154.63,23.776884]
[1729329714085,6.5706901,154.68,154.63,23.776884]
[1729329714288,8.04408004,154.71,154.63,23.776884]
[1729329714580,6.57100437,154.7,154.63,23.776884]
[1729329714779,6.57100437,154.69,154.63,23.776884]
[1729329715089,6.57100437,154.68,154.63,23.776884]
[1729329715274,8.04408004,154.71,154.63,23.776884]
[1729329715474,6.57110526,154.7,154.63,23.776884]
[1729329715677,6.57110526,154.69,154.63,23.776884]
[1729329715983,6.57110526,154.68,154.63,23.776884]
[1729329716289,8.04408004,154.71,154.63,23.776884]
[1729329716461,6.57216698,154.7,154.63,23.776884]
[1729329716668,6.57216698,154.69,154.63,23.776884]
[1729329716991,6.57216698,154.68,154.63,23.776884]
[1729329717175,8.04408004,154.71,154.63,23.776884]
[1729329717487,14.61691483,154.7,154.63,23.776884]
[1729329717684,6.57283479,154.69,154.63,23.776884]
[1729329717874,6.57280221,154.68,154.63,23.776884]
[1729329718174,8.04675702,154.7,154.63,23.776884]
[1729329718375,6.57371735,154.69,154.63,23.776884]
[1729329718574,6.57371735,154.68,154.63,23.776884]
[1729329718776,8.04675702,154.7,154.63,23.776884]
[1729329719077,6.57376102,154.69,154.63,23.776884]
[1729329719276,6.57376102,154.68,154.63,23.776884]
[1729329719489,8.04675702,154.7,154.63,23.776884]
[1729329719691,6.57507002,154.69,154.63,23.776884]
[1729329719982,6.57507002,154.68,154.63,23.776884]
[1729329720188,8.04675702,154.7,154.63,23.776884]
[1729329720489,6.57640628,154.69,154.63,23.776884]
[1729329720666,6.57640628,154.68,154.63,23.776884]
[1729329720866,8.05126732,154.7,154.63,23.776884]
[1729329721068,6.57640627,154.69,154.63,23.776884]
[1729329721283,6.57763549,154.68,154.63,23.776884]
[1729329721588,6.57763549,154.67,154.63,23.776884]
[1729329721766,8.05277382,154.7,154.63,23.776884]
[1729329721967,6.57775592,154.69,154.63,23.776884]
[1729329722266,6.57775592,154.68,154.63,23.776884]
[1729329722467,6.57775592,154.67,154.63,23.776884]
[1729329722667,8.05277382,154.7,154.63,23.776884]
[1729329722882,6.57826384,154.69,154.63,23.776884]
[1729329723084,6.57826384,154.68,154.63,23.776884]
[1729329723275,6.57826384,154.67,154.63,23.776884]
[1729329723469,8.05277382,154.7,154.63,23.776884]
[1729329723669,6.5793095,154.69,154.63,23.776884]
[1729329723869,6.5793708,154.68,154.63,23.776884]
[1729329724275,6.5793708,154.67,154.63,23.776884]
[1729329724487,8.0548852,154.69,154.63,23.776884]
[1729329724791,6.57965677,154.68,154.63,23.776884]
[1729329724981,6.57965677,154.67,154.63,23.776884]
[1729329725182,8.0548852,154.7,154.63,23.776884]
[1729329725389,14.63580636,154.69,154.63,23.776884]
[1729329725593,6.58092116,154.68,154.63,23.776884]
[1729329725891,6.58092116,154.67,154.63,23.776884]
[1729329726093,6.58092116,154.66,154.63,23.776884]
[1729329726276,8.0548852,154.68,154.63,23.776884]
[1729329726477,6.5821849,154.67,154.63,23.776884]
[1729329726679,6.5821849,154.66,154.63,23.776884]
[1729329726893,8.0548852,154.68,154.63,23.776884]
[1729329727093,6.58216789,154.67,154.63,23.776884]
[1729329727298,6.58216789,154.66,154.63,23.776884]
[1729329727484,8.05889321,154.68,154.63,23.776884]
[1729329727684,6.58335987,154.67,154.63,23.776884]
[1729329727985,6.58335987,154.66,154.63,23.776884]
[1729329728181,8.05889321,154.68,154.63,23.776884]
[1729329728383,6.58430498,154.67,154.63,23.776884]
[1729329728584,6.58430498,154.66,154.63,23.776884]
[1729329728890,6.58430498,154.65,154.63,23.776884]
[1729329729196,8.05889321,154.68,154.63,23.776884]
[1729329729391,6.58535909,154.67,154.63,23.776884]
[1729329729598,6.58535909,154.66,154.63,23.776884]
[1729329729786,6.58535909,154.65,154.63,23.776884]
[1729329729986,8.05889321,154.68,154.63,23.776884]
[1729329730193,6.58611425,154.67,154.63,23.776884]
[1729329730395,6.58611425,154.66,154.63,23.776884]
[1729329730615,6.58611425,154.65,154.63,23.776884]
[1729329730796,8.05889321,154.68,154.63,23.776884]
[1729329731107,6.5860168,154.67,154.63,23.776884]
[1729329731278,6.5860168,154.66,154.63,23.776884]
[1729329731605,6.5860168,154.65,154.63,23.776884]
[1729329731905,8.06240845,154.68,154.63,23.776884]
[1729329732083,6.58565999,154.67,154.63,23.776884]
[1729329732281,8.06240845,154.68,154.63,23.776884]
[1729329732282,6.58565999,154.66,154.63,23.776884]
[1729329732484,8.06240845,154.68,154.63,23.776884]
[1729329732485,6.58565999,154.65,154.63,23.776884]
[1729329732800,8.06240845,154.68,154.63,23.776884]
[1729329733097,6.58535385,154.67,154.63,23.776884]
[1729329733290,6.58535385,154.66,154.63,23.776884]
[1729329733498,8.06240845,154.68,154.63,23.776884]
[1729329733701,6.58515038,154.67,154.63,23.776884]
[1729329733880,6.58515038,154.66,154.63,23.776884]
[1729329734080,8.06240845,154.69,154.63,23.776884]
[1729329734296,6.58540032,154.68,154.63,23.776884]
[1729329734494,6.58540032,154.67,154.63,23.776884]
[1729329734701,6.58540032,154.66,154.63,23.776884]
[1729329734889,15.561,154.71,154.63,23.776884]
[1729329735094,8.06225835,154.69,154.63,23.776884]
[1729329735402,6.58511978,154.68,154.63,23.776884]
[1729329735581,6.58511978,154.67,154.63,23.776884]
[1729329735782,6.58511978,154.66,154.63,23.776884]
[1729329735978,8.06196078,154.69,154.63,23.776884]
[1729329736206,6.58512611,154.68,154.63,23.776884]
[1729329736510,6.58512611,154.67,154.63,23.776884]
[1729329736691,6.58512611,154.66,154.63,23.776884]
[1729329736894,8.06196078,154.69,154.63,23.776884]
[1729329737090,6.58513061,154.68,154.63,23.776884]
[1729329737293,6.58513061,154.67,154.63,23.776884]
[1729329737592,6.58513061,154.66,154.63,23.776884]
[1729329737794,8.06196078,154.69,154.63,23.776884]
[1729329738092,6.58526488,154.68,154.63,23.776884]
[1729329738295,6.58526488,154.67,154.63,23.776884]
[1729329738601,6.58528016,154.66,154.63,23.776884]
[1729329738904,8.06214955,154.69,154.63,23.776884]
[1729329739213,6.5851578,154.68,154.63,23.776884]
[1729329739398,6.5851578,154.67,154.63,23.776884]
[1729329739580,6.5851578,154.66,154.63,23.776884]
[1729329739786,8.06214955,154.68,154.63,23.776884]
[1729329739983,6.58520529,154.67,154.63,23.776884]
[1729329740183,6.58520529,154.66,154.63,23.776884]
[1729329740397,8.06214955,154.68,154.63,23.776884]
[1729329740609,6.58523134,154.67,154.63,23.776884]
[1729329740798,6.58523134,154.66,154.63,23.776884]
[1729329740999,8.06214955,154.69,154.63,23.776884]
[1729329741199,6.58525874,154.68,154.63,23.776884]
[1729329741490,6.58525874,154.67,154.63,23.776884]
[1729329741697,6.58525874,154.66,154.63,23.776884]
[1729329742010,8.06214955,154.69,154.63,23.776884]
[1729329742196,6.58528746,154.68,154.63,23.776884]
[1729329742398,6.58528746,154.67,154.63,23.776884]
[1729329742602,15.561,154.71,154.63,23.776884]
[1729329742787,8.06227059,154.69,154.63,23.776884]
[1729329742982,6.5852921,154.68,154.63,23.776884]
[1729329743292,6.5852921,154.67,154.63,23.776884]
[1729329743498,6.5852921,154.66,154.63,23.776884]
[1729329743698,8.06227059,154.69,154.63,23.776884]
[1729329743999,6.58543032,154.68,154.63,23.776884]
[1729329744186,6.58543032,154.67,154.63,23.776884]
[1729329744504,6.58543032,154.66,154.63,23.776884]
[1729329744710,8.06227059,154.69,154.63,23.776884]
[1729329744898,6.58551349,154.68,154.63,23.776884]
[1729329745084,6.58551349,154.67,154.63,23.776884]
[1729329745296,6.58551349,154.66,154.63,23.776884]
[1729329745513,8.06227059,154.69,154.63,23.776884]
[1729329745820,6.58537003,154.68,154.63,23.776884]
[1729329746020,6.58537003,154.67,154.63,23.776884]
[1729329746204,6.58537003,154.66,154.63,23.776884]
[1729329746522,8.06227059,154.69,154.63,23.776884]
[1729329746701,6.58563833,154.68,154.63,23.776884]
[1729329746906,6.58563833,154.67,154.63,23.776884]
[1729329747237,6.58563833,154.66,154.63,23.776884]
[1729329747519,8.06227059,154.69,154.63,23.776884]
[1729329747706,6.58548957,154.68,154.63,23.776884]
[1729329748018,6.58548957,154.67,154.63,23.776884]
[1729329748209,6.58548957,154.66,154.63,23.776884]
[1729329748404,8.06227059,154.69,154.63,23.776884]
[1729329748602,6.58549142,154.68,154.63,23.776884]
[1729329748802,6.58549142,154.67,154.63,23.776884]
[1729329749012,6.58549142,154.66,154.63,23.776884]
[1729329749209,8.06227059,154.69,154.63,23.776884]
[1729329749414,6.58544748,154.68,154.63,23.776884]
[1729329749615,6.58544748,154.67,154.63,23.776884]
[1729329749821,6.58544748,154.66,154.63,23.776884]
[1729329750010,8.06227059,154.69,154.63,23.776884]
[1729329750206,6.58536594,154.68,154.63,23.776884]
[1729329750420,6.58536594,154.67,154.63,23.776884]
[1729329750609,6.58536594,154.66,154.63,23.776884]
[1729329750927,8.06227059,154.69,154.63,23.776884]
[1729329751219,6.52105887,154.68,154.63,23.776884]
[1729329751412,8.06227059,154.69,154.63,23.776884]
[1729329751413,6.52105887,154.67,154.63,23.776884]
[1729329751608,8.06227059,154.69,154.63,23.776884]
[1729329751815,6.52115223,154.68,154.63,23.776884]
[1729329752015,6.52115223,154.67,154.63,23.776884]
[1729329752207,8.06227059,154.69,154.63,23.776884]
[1729329752410,6.52096854,154.68,154.63,23.776884]
[1729329752622,8.06227059,154.7,154.63,23.776884]
[1729329752623,6.52096854,154.67,154.63,23.776884]
[1729329752798,15.561,154.71,154.63,23.776884]
[1729329753094,14.58379408,154.7,154.63,23.776884]
[1729329753295,6.52096749,154.69,154.63,23.776884]
[1729329753606,6.52096749,154.68,154.63,23.776884]
[1729329753798,6.52096749,154.67,154.63,23.776884]
[1729329754002,8.06283114,154.69,154.63,23.776884]
[1729329754321,6.52074073,154.68,154.63,23.776884]
[1729329754498,6.52074073,154.67,154.63,23.776884]
[1729329754699,8.06283114,154.69,154.63,23.776884]
[1729329754912,6.51962495,154.68,154.63,23.776884]
[1729329755121,6.51962495,154.67,154.63,23.776884]
[1729329755320,8.06283114,154.69,154.63,23.776884]
[1729329755498,6.5194622,154.68,154.63,23.776884]
[1729329755697,6.5194622,154.67,154.63,23.776884]
[1729329755900,8.06283114,154.69,154.63,23.776884]
[1729329756122,6.51935013,154.68,154.63,23.776884]
[1729329756414,15.561,154.71,154.63,23.776884]
[1729329756609,8.06156268,154.69,154.63,23.776884]
[1729329756909,6.51923419,154.68,154.63,23.776884]
[1729329757213,6.51923419,154.67,154.63,23.776884]
[1729329757410,8.06156268,154.69,154.63,23.776884]
[1729329757610,15.561,154.71,154.63,23.776884]
[1729329757611,6.51884917,154.68,154.63,23.776884]
[1729329757823,6.51884917,154.67,154.63,23.776884]
[1729329758026,8.06156268,154.7,154.63,23.776884]
[1729329758212,6.51834186,154.69,154.63,23.776884]
[1729329758527,6.51834186,154.68,154.63,23.776884]
[1729329758731,6.51834186,154.67,154.63,23.776884]
[1729329758908,8.06156268,154.7,154.63,23.776884]
[1729329759111,6.51812991,154.69,154.63,23.776884]
[1729329759430,6.51812991,154.68,154.63,23.776884]
[1729329759631,6.51812991,154.67,154.63,23.776884]
[1729329759803,8.06156268,154.7,154.63,23.776884]
[1729329760004,15.561,154.71,154.63,23.776884]
[1729329760305,8.06003181,154.69,154.63,23.776884]
[1729329760632,6.51794104,154.68,154.63,23.776884]
[1729329760809,6.51794104,154.67,154.63,23.776884]
[1729329761016,8.06003181,154.69,154.63,23.776884]
[1729329761211,6.51788396,154.68,154.63,23.776884]
[1729329761523,6.51788396,154.67,154.63,23.776884]
[1729329761724,8.06003181,154.7,154.63,23.776884]
[1729329762039,14.57707048,154.69,154.62,10.59399139]
[1729329762324,6.51703867,154.68,154.62,10.59399139]
[1729329762525,6.51703867,154.67,154.62,10.59399139]
[1729329762735,8.06003181,154.69,154.62,10.59399139]
[1729329762927,6.51712791,154.68,154.62,10.59399139]
[1729329763122,6.51712791,154.67,154.63,23.776884]
[1729329763311,8.06003181,154.69,154.63,23.776884]
[1729329763513,6.51725217,154.68,154.63,23.776884]
[1729329763715,6.51725217,154.67,154.63,23.776884]
[1729329764014,8.06003181,154.69,154.63,23.776884]
[1729329764217,6.51700818,154.68,154.63,23.776884]
[1729329764427,6.51700818,154.67,154.63,23.776884]
[1729329764605,8.06003181,154.69,154.63,23.776884]
[1729329764801,6.51720283,154.68,154.63,23.776884]
[1729329765002,6.51720283,154.67,154.63,23.776884]
[1729329765233,8.06003181,154.69,154.63,23.776884]
[1729329765424,6.51717124,154.68,154.63,23.776884]
[1729329765617,6.51717124,154.67,154.63,23.776884]
[1729329765817,8.06003181,154.69,154.63,23.776884]
[1729329766023,6.51692562,154.68,154.63,23.776884]
[1729329766223,6.51692562,154.67,154.63,23.776884]
[1729329766425,8.06003181,154.69,154.63,23.776884]
[1729329766606,6.51695821,154.68,154.63,23.776884]
[1729329766935,6.51695821,154.67,154.63,23.776884]
[1729329767121,15.561,154.71,154.63,23.776884]